[Event "*** SCC Grand Prix: Titled Tuesday Blitz"]
[Site "Chess.com"]
[Date "2020.08.25"]
[Round "5"]
[White "KatarinaOstojic"]
[Black "AlexSuv"]
[Result "0-1"]
[WhiteElo "2310"]
[BlackElo "2486"]
[TimeControl "180+1"]
[EndTime "10:57:16 PDT"]
[Termination "AlexSuv won by resignation"]

1. d4 {[%clk 0:03:00.9]} 1... Nf6 {[%clk 0:02:51.5]} 2. Nf3 {[%clk 0:02:59.9]}
2... e6 {[%clk 0:02:50.1]} 3. e3 {[%clk 0:02:58.7]} 3... b6 {[%clk 0:02:49.8]}
4. Bd3 {[%clk 0:02:59.3]} 4... Bb7 {[%clk 0:02:49.4]} 5. O-O {[%clk 0:03:00]}
5... d6 {[%clk 0:02:49.5]} 6. c4 {[%clk 0:03:00.3]} 6... Nbd7 {[%clk 0:02:49.4]}
7. Nc3 {[%clk 0:02:59]} 7... e5 {[%clk 0:02:48.9]} 8. d5 {[%clk 0:02:45.9]} 8...
g6 {[%clk 0:02:45.6]} 9. Bc2 {[%clk 0:02:46]} 9... Bg7 {[%clk 0:02:45.1]} 10. e4
{[%clk 0:02:46.4]} 10... O-O {[%clk 0:02:44.8]} 11. h3 {[%clk 0:02:42]} 11... h6
{[%clk 0:02:44.1]} 12. Be3 {[%clk 0:02:41.6]} 12... Nh5 {[%clk 0:02:42.1]} 13.
Qd2 {[%clk 0:02:40.9]} 13... Kh7 {[%clk 0:02:42]} 14. Ne1 {[%clk 0:02:36.6]}
14... a5 {[%clk 0:02:38.1]} 15. b3 {[%clk 0:02:35.4]} 15... Qe7 {[%clk
0:02:29.8]} 16. Nd3 {[%clk 0:02:34.9]} 16... f5 {[%clk 0:02:21.6]} 17. exf5
{[%clk 0:02:09.4]} 17... gxf5 {[%clk 0:02:22.5]} 18. g4 {[%clk 0:02:01.1]} 18...
Nhf6 {[%clk 0:02:19.4]} 19. gxf5 {[%clk 0:01:59]} 19... Qf7 {[%clk 0:02:04.8]}
20. f3 {[%clk 0:01:54.6]} 20... Qh5 {[%clk 0:02:02.2]} 21. Qg2 {[%clk
0:01:53.9]} 21... Rg8 {[%clk 0:01:57.7]} 22. Qg6+ {[%clk 0:01:48.8]} 22... Kh8
{[%clk 0:01:53.6]} 23. Kh2 {[%clk 0:01:40.8]} 23... Bf8 {[%clk 0:01:35.4]} 24.
Qxh5 {[%clk 0:01:38.2]} 24... Nxh5 {[%clk 0:01:36.3]} 25. f4 {[%clk 0:01:35.3]}
25... Ng3 {[%clk 0:01:27.7]} 26. Rg1 {[%clk 0:01:33.6]} 26... Nxf5 {[%clk
0:01:27.8]} 27. Rxg8+ {[%clk 0:01:31.7]} 27... Kxg8 {[%clk 0:01:28.7]} 28. Rg1+
{[%clk 0:01:31.5]} 28... Kh8 {[%clk 0:01:27.6]} 29. Bf2 {[%clk 0:01:16.8]} 29...
Bc8 {[%clk 0:01:14.1]} 30. fxe5 {[%clk 0:01:11.6]} 30... Nxe5 {[%clk 0:01:15]}
31. Nxe5 {[%clk 0:01:07.8]} 31... dxe5 {[%clk 0:01:15.9]} 32. Ne4 {[%clk
0:01:08.3]} 32... Be7 {[%clk 0:01:03.8]} 33. Be1 {[%clk 0:00:51.8]} 33... Bd7
{[%clk 0:00:59.2]} 34. Bc3 {[%clk 0:00:51.2]} 34... Nd4 {[%clk 0:00:53.7]} 35.
Bd1 {[%clk 0:00:51.4]} 35... Rf8 {[%clk 0:00:51.1]} 36. Kg2 {[%clk 0:00:46]}
36... Bf5 {[%clk 0:00:45.7]} 37. Ng3 {[%clk 0:00:43.5]} 37... Bd3 {[%clk
0:00:45]} 38. Bg4 {[%clk 0:00:38.8]} 38... Bg5 {[%clk 0:00:40.1]} 39. Bxd4
{[%clk 0:00:35.2]} 39... exd4 {[%clk 0:00:39.9]} 40. Rd1 {[%clk 0:00:35.8]}
40... Bc2 {[%clk 0:00:33.9]} 41. Rxd4 {[%clk 0:00:33.5]} 41... Be3 {[%clk
0:00:34.1]} 42. Re4 {[%clk 0:00:26.8]} 42... Rf2+ {[%clk 0:00:32.6]} 43. Kg1
{[%clk 0:00:25.8]} 43... Bxe4 {[%clk 0:00:30.4]} 44. Nxe4 {[%clk 0:00:26.7]}
44... Rf4+ {[%clk 0:00:29.2]} 45. Kg2 {[%clk 0:00:25]} 45... Rxe4 {[%clk
0:00:29.5]} 46. Kf3 {[%clk 0:00:25.9]} 46... Re7 {[%clk 0:00:29.5]} 0-1

[Event "*** SCC Grand Prix: Titled Tuesday Blitz"]
[Site "Chess.com"]
[Date "2020.08.25"]
[Round "5"]
[White "Thee-Chessboy"]
[Black "margarita_2703"]
[Result "0-1"]
[WhiteElo "2515"]
[BlackElo "2402"]
[TimeControl "180+1"]
[EndTime "10:57:17 PDT"]
[Termination "margarita_2703 won by resignation"]

1. d4 {[%clk 0:03:00.9]} 1... Nf6 {[%clk 0:02:54.4]} 2. c4 {[%clk 0:03:01.3]}
2... c6 {[%clk 0:02:53.7]} 3. Nf3 {[%clk 0:03:01.4]} 3... d5 {[%clk 0:02:54.4]}
4. Qc2 {[%clk 0:03:01.8]} 4... g6 {[%clk 0:02:53.1]} 5. e3 {[%clk 0:03:01.2]}
5... Bf5 {[%clk 0:02:52.9]} 6. Bd3 {[%clk 0:03:01.2]} 6... Bxd3 {[%clk
0:02:53.3]} 7. Qxd3 {[%clk 0:03:02.1]} 7... Bg7 {[%clk 0:02:53.7]} 8. O-O {[%clk
0:03:02.1]} 8... Nbd7 {[%clk 0:02:54.6]} 9. Nc3 {[%clk 0:03:02.3]} 9... O-O
{[%clk 0:02:55]} 10. b3 {[%clk 0:03:02.8]} 10... Re8 {[%clk 0:02:53.9]} 11. Bb2
{[%clk 0:03:02.6]} 11... Rc8 {[%clk 0:02:40.5]} 12. Rfd1 {[%clk 0:02:58.7]}
12... Qa5 {[%clk 0:02:32.3]} 13. e4 {[%clk 0:02:53.8]} 13... dxe4 {[%clk
0:02:30.6]} 14. Nxe4 {[%clk 0:02:54.1]} 14... Nxe4 {[%clk 0:02:30.1]} 15. Qxe4
{[%clk 0:02:55]} 15... e5 {[%clk 0:02:22.6]} 16. dxe5 {[%clk 0:02:28.8]} 16...
Nxe5 {[%clk 0:02:20.6]} 17. Nxe5 {[%clk 0:02:26.5]} 17... Bxe5 {[%clk
0:02:19.9]} 18. Bxe5 {[%clk 0:02:26.9]} 18... Rxe5 {[%clk 0:02:18.2]} 19. Qg4
{[%clk 0:02:21.2]} 19... Rce8 {[%clk 0:02:17.3]} 20. h4 {[%clk 0:02:05.3]} 20...
Qc3 {[%clk 0:01:57.4]} 21. Qd7 {[%clk 0:01:43.7]} 21... Re1+ {[%clk 0:01:33.8]}
22. Kh2 {[%clk 0:01:28.5]} 22... R1e2 {[%clk 0:01:16.8]} 23. Rf1 {[%clk
0:01:05.1]} 23... R8e7 {[%clk 0:01:12]} 24. Qd8+ {[%clk 0:01:01.7]} 24... Kg7
{[%clk 0:01:11.8]} 25. Rad1 {[%clk 0:01:00.3]} 25... Qf6 {[%clk 0:01:06.2]} 26.
Qd4 {[%clk 0:00:49.6]} 26... Qxd4 {[%clk 0:01:03.3]} 27. Rxd4 {[%clk 0:00:50]}
27... Rxa2 {[%clk 0:01:00]} 28. Rd3 {[%clk 0:00:49]} 28... b5 {[%clk 0:00:56.5]}
29. cxb5 {[%clk 0:00:39]} 29... cxb5 {[%clk 0:00:53.6]} 30. Kg3 {[%clk
0:00:39.3]} 30... a5 {[%clk 0:00:50.8]} 31. Rc1 {[%clk 0:00:38.5]} 31... a4
{[%clk 0:00:46.4]} 32. bxa4 {[%clk 0:00:38]} 32... bxa4 {[%clk 0:00:46.4]} 33.
Rc4 {[%clk 0:00:38.3]} 33... Ra7 {[%clk 0:00:43.2]} 34. Rdc3 {[%clk 0:00:29.6]}
34... a3 {[%clk 0:00:42.7]} 35. Rc7 {[%clk 0:00:29.9]} 35... Rxc7 {[%clk
0:00:39.6]} 36. Rxc7 {[%clk 0:00:30.4]} 36... Rb2 {[%clk 0:00:38]} 37. Ra7
{[%clk 0:00:30.7]} 37... a2 {[%clk 0:00:35.1]} 38. f3 {[%clk 0:00:27.3]} 38...
Kf6 {[%clk 0:00:32.2]} 39. Kh3 {[%clk 0:00:25.3]} 39... Ke5 {[%clk 0:00:29]} 40.
Kg3 {[%clk 0:00:23.3]} 40... Kd4 {[%clk 0:00:27.2]} 0-1

[Event "*** SCC Grand Prix: Titled Tuesday Blitz"]
[Site "Chess.com"]
[Date "2020.08.25"]
[Round "5"]
[White "Hikaru"]
[Black "chito89"]
[Result "1-0"]
[WhiteElo "3221"]
[BlackElo "2783"]
[TimeControl "180+1"]
[EndTime "10:57:18 PDT"]
[Termination "Hikaru won by resignation"]

1. Nf3 {[%clk 0:03:00.9]} 1... Nf6 {[%clk 0:02:48.2]} 2. b3 {[%clk 0:03:00.8]}
2... d5 {[%clk 0:02:45.7]} 3. e3 {[%clk 0:03:00.2]} 3... Bg4 {[%clk 0:02:41.9]}
4. Bb2 {[%clk 0:03:00.2]} 4... e6 {[%clk 0:02:34.3]} 5. h3 {[%clk 0:03:00.4]}
5... Bh5 {[%clk 0:02:31.5]} 6. d3 {[%clk 0:02:59.4]} 6... c5 {[%clk 0:02:27.8]}
7. g4 {[%clk 0:02:58.9]} 7... Bg6 {[%clk 0:02:27.4]} 8. Nh4 {[%clk 0:02:59.3]}
8... Nc6 {[%clk 0:02:24.3]} 9. Nd2 {[%clk 0:02:59.1]} 9... Nd7 {[%clk
0:02:17.4]} 10. Ndf3 {[%clk 0:02:54.8]} 10... a5 {[%clk 0:02:03.2]} 11. a4
{[%clk 0:02:48.8]} 11... e5 {[%clk 0:01:58]} 12. c4 {[%clk 0:02:38.8]} 12... d4
{[%clk 0:01:55.1]} 13. Bg2 {[%clk 0:02:37.5]} 13... Be7 {[%clk 0:01:48.7]} 14.
Nxg6 {[%clk 0:02:29.6]} 14... hxg6 {[%clk 0:01:49.6]} 15. O-O {[%clk 0:02:28]}
15... O-O {[%clk 0:01:42.9]} 16. Nd2 {[%clk 0:02:26.5]} 16... Qb6 {[%clk
0:01:39.9]} 17. Ne4 {[%clk 0:02:12.5]} 17... Nf6 {[%clk 0:01:32.6]} 18. Ng3
{[%clk 0:02:00.6]} 18... Rad8 {[%clk 0:01:31.8]} 19. Qe2 {[%clk 0:02:00.1]}
19... dxe3 {[%clk 0:01:08.4]} 20. fxe3 {[%clk 0:01:57.5]} 20... Qxb3 {[%clk
0:01:08.6]} 21. Ra3 {[%clk 0:01:53.5]} 21... Qb6 {[%clk 0:01:07.6]} 22. g5
{[%clk 0:01:51.9]} 22... Nh7 {[%clk 0:00:40]} 23. h4 {[%clk 0:01:51.4]} 23...
Rd7 {[%clk 0:00:34.9]} 24. Bd5 {[%clk 0:01:25.5]} 24... Nb4 {[%clk 0:00:34.9]}
25. e4 {[%clk 0:01:25.3]} 25... Nxd5 {[%clk 0:00:32.2]} 26. exd5 {[%clk
0:01:26.2]} 26... f6 {[%clk 0:00:30.1]} 27. Ne4 {[%clk 0:01:19.3]} 27... fxg5
{[%clk 0:00:28.9]} 28. Rxf8+ {[%clk 0:01:18.7]} 28... Kxf8 {[%clk 0:00:26.6]}
29. Ra1 {[%clk 0:01:08.2]} 29... gxh4 {[%clk 0:00:25.4]} 30. Bxe5 {[%clk
0:01:08.7]} 30... Kg8 {[%clk 0:00:23.5]} 31. Qg4 {[%clk 0:01:04.3]} 31... Qd8
{[%clk 0:00:14.7]} 32. Qe6+ {[%clk 0:01:00.7]} 32... Kh8 {[%clk 0:00:13.1]} 33.
Rf1 {[%clk 0:01:01.1]} 33... Nf8 {[%clk 0:00:08.5]} 34. Qg4 {[%clk 0:00:47.5]}
34... Kg8 {[%clk 0:00:08.7]} 35. Qf4 {[%clk 0:00:43.4]} 35... Qe8 {[%clk
0:00:06]} 36. Bxg7 {[%clk 0:00:27.8]} 36... Kxg7 {[%clk 0:00:04.9]} 37. Qe5+
{[%clk 0:00:28.1]} 37... Kh6 {[%clk 0:00:03.8]} 38. Nf6 {[%clk 0:00:28.2]} 38...
Qd8 {[%clk 0:00:01.7]} 39. Ng4+ {[%clk 0:00:27.4]} 39... Kh7 {[%clk 0:00:02.6]}
40. Rf7+ {[%clk 0:00:27.4]} 1-0

[Event "*** SCC Grand Prix: Titled Tuesday Blitz"]
[Site "Chess.com"]
[Date "2020.08.25"]
[Round "5"]
[White "freshfoodcompany"]
[Black "RodinMihail"]
[Result "1/2-1/2"]
[WhiteElo "2361"]
[BlackElo "2498"]
[TimeControl "180+1"]
[EndTime "10:57:18 PDT"]
[Termination "Game drawn - insufficient material"]

1. d4 {[%clk 0:03:00.9]} 1... d5 {[%clk 0:02:59.7]} 2. c4 {[%clk 0:03:01]} 2...
e6 {[%clk 0:03:00]} 3. Nc3 {[%clk 0:03:01.2]} 3... c6 {[%clk 0:03:00.3]} 4. e4
{[%clk 0:03:00.2]} 4... dxe4 {[%clk 0:03:01.2]} 5. Nxe4 {[%clk 0:03:00.1]} 5...
Bb4+ {[%clk 0:03:01.8]} 6. Nc3 {[%clk 0:02:58.7]} 6... c5 {[%clk 0:03:01.9]} 7.
d5 {[%clk 0:02:43.8]} 7... Nf6 {[%clk 0:02:58.8]} 8. Bg5 {[%clk 0:02:38.1]} 8...
exd5 {[%clk 0:02:57.9]} 9. cxd5 {[%clk 0:02:35.6]} 9... Qxd5 {[%clk 0:02:57.7]}
10. Bb5+ {[%clk 0:02:17.2]} 10... Bd7 {[%clk 0:02:47.6]} 11. Bxf6 {[%clk
0:01:58.1]} 11... Qxd1+ {[%clk 0:02:45.9]} 12. Rxd1 {[%clk 0:01:55.9]} 12...
gxf6 {[%clk 0:02:43.2]} 13. Bxd7+ {[%clk 0:01:54.8]} 13... Nxd7 {[%clk
0:02:43.3]} 14. Ne2 {[%clk 0:01:54.7]} 14... O-O-O {[%clk 0:02:40.3]} 15. O-O
{[%clk 0:01:53]} 15... Ne5 {[%clk 0:02:28.7]} 16. a3 {[%clk 0:01:46.3]} 16...
Bxc3 {[%clk 0:02:27.3]} 17. Nxc3 {[%clk 0:01:45.1]} 17... f5 {[%clk 0:02:24.2]}
18. Nd5 {[%clk 0:01:43.4]} 18... Rhe8 {[%clk 0:02:13.2]} 19. Ne3 {[%clk
0:01:26.8]} 19... f4 {[%clk 0:01:55.4]} 20. Nf5 {[%clk 0:01:21.6]} 20... Kc7
{[%clk 0:01:53.7]} 21. f3 {[%clk 0:01:20.6]} 21... Nd3 {[%clk 0:01:51.6]} 22.
Rd2 {[%clk 0:01:13.6]} 22... c4 {[%clk 0:01:51.4]} 23. Rfd1 {[%clk 0:01:10.5]}
23... b5 {[%clk 0:01:48]} 24. Kf1 {[%clk 0:01:04.4]} 24... Nxb2 {[%clk
0:01:45.2]} 25. Rxd8 {[%clk 0:00:55.4]} 25... Rxd8 {[%clk 0:01:46.1]} 26. Rxd8
{[%clk 0:00:52.8]} 26... Kxd8 {[%clk 0:01:47]} 27. Ke2 {[%clk 0:00:50.1]} 27...
c3 {[%clk 0:01:45.1]} 28. Nd6 {[%clk 0:00:47.9]} 28... a6 {[%clk 0:01:36.1]} 29.
Nxf7+ {[%clk 0:00:45.9]} 29... Kc7 {[%clk 0:01:29.4]} 30. Ng5 {[%clk 0:00:43.6]}
30... Kd6 {[%clk 0:01:24.7]} 31. Ne4+ {[%clk 0:00:42.5]} 31... Kd5 {[%clk
0:01:22.3]} 32. Nxc3+ {[%clk 0:00:41.4]} 32... Kc4 {[%clk 0:01:22.9]} 33. Ne4
{[%clk 0:00:39.1]} 33... Kb3 {[%clk 0:01:22.4]} 34. Nc5+ {[%clk 0:00:38.8]}
34... Kxa3 {[%clk 0:01:21.8]} 35. Nxa6 {[%clk 0:00:38.3]} 35... b4 {[%clk
0:01:22.4]} 36. g3 {[%clk 0:00:30.8]} 36... fxg3 {[%clk 0:01:16.5]} 37. hxg3
{[%clk 0:00:30.8]} 37... b3 {[%clk 0:01:14.2]} 38. Nc5 {[%clk 0:00:30.2]} 38...
Nc4 {[%clk 0:01:12.3]} 39. Nxb3 {[%clk 0:00:26.5]} 39... Kxb3 {[%clk 0:01:13.2]}
40. f4 {[%clk 0:00:26]} 40... Kc3 {[%clk 0:01:11.3]} 41. Kf3 {[%clk 0:00:24.9]}
41... Kd4 {[%clk 0:01:11.5]} 42. Kg4 {[%clk 0:00:25.1]} 42... Nd6 {[%clk
0:01:02.3]} 43. Kg5 {[%clk 0:00:24.4]} 43... Ke4 {[%clk 0:00:34.1]} 44. Kh6
{[%clk 0:00:22.4]} 44... Nf5+ {[%clk 0:00:33.2]} 45. Kxh7 {[%clk 0:00:23.3]}
45... Nxg3 {[%clk 0:00:33.8]} 46. f5 {[%clk 0:00:23.3]} 46... Kf4 {[%clk
0:00:34.7]} 47. f6 {[%clk 0:00:22.8]} 47... Ne4 {[%clk 0:00:31.8]} 48. f7 {[%clk
0:00:21.5]} 48... Ng5+ {[%clk 0:00:31.6]} 49. Kg6 {[%clk 0:00:20.8]} 49... Nxf7
{[%clk 0:00:32.5]} 1/2-1/2

[Event "*** SCC Grand Prix: Titled Tuesday Blitz"]
[Site "Chess.com"]
[Date "2020.08.25"]
[Round "5"]
[White "killer311"]
[Black "fabianvivasz"]
[Result "1-0"]
[WhiteElo "2485"]
[BlackElo "2315"]
[TimeControl "180+1"]
[EndTime "10:57:19 PDT"]
[Termination "killer311 won on time"]

1. d4 {[%clk 0:03:00.9]} 1... Nf6 {[%clk 0:02:56.7]} 2. c4 {[%clk 0:03:01]} 2...
g6 {[%clk 0:02:56.6]} 3. g3 {[%clk 0:03:01.2]} 3... Bg7 {[%clk 0:02:56.4]} 4.
Bg2 {[%clk 0:03:02.1]} 4... O-O {[%clk 0:02:55.4]} 5. Nf3 {[%clk 0:03:02.7]}
5... d6 {[%clk 0:02:55.2]} 6. Nc3 {[%clk 0:03:02.1]} 6... Nbd7 {[%clk
0:02:53.5]} 7. O-O {[%clk 0:03:01.9]} 7... Re8 {[%clk 0:02:53.5]} 8. Qb3 {[%clk
0:02:53.9]} 8... e5 {[%clk 0:02:50]} 9. dxe5 {[%clk 0:02:54.8]} 9... dxe5 {[%clk
0:02:40.6]} 10. Rd1 {[%clk 0:02:52.7]} 10... c6 {[%clk 0:02:38.3]} 11. Ng5
{[%clk 0:02:44.5]} 11... Qe7 {[%clk 0:02:26.7]} 12. Nge4 {[%clk 0:02:35.1]}
12... Nc5 {[%clk 0:01:57.6]} 13. Qa3 {[%clk 0:02:09.1]} 13... Ncxe4 {[%clk
0:01:49.3]} 14. Qxe7 {[%clk 0:02:08]} 14... Rxe7 {[%clk 0:01:47.5]} 15. Nxe4
{[%clk 0:02:08.1]} 15... Be6 {[%clk 0:01:40.8]} 16. Bg5 {[%clk 0:02:03.6]} 16...
Nxe4 {[%clk 0:01:03.2]} 17. Bxe7 {[%clk 0:02:01.5]} 17... Nf6 {[%clk 0:00:56.3]}
18. Rac1 {[%clk 0:01:59.5]} 18... Re8 {[%clk 0:00:51.1]} 19. Rd8 {[%clk
0:01:45.7]} 19... Rxd8 {[%clk 0:00:50.6]} 20. Bxd8 {[%clk 0:01:46.6]} 20... Nd7
{[%clk 0:00:51.2]} 21. b3 {[%clk 0:01:42.7]} 21... Kf8 {[%clk 0:00:46.3]} 22.
Ba5 {[%clk 0:01:40.8]} 22... Ke7 {[%clk 0:00:39.7]} 23. Bc3 {[%clk 0:01:39.5]}
23... f6 {[%clk 0:00:25.8]} 24. h4 {[%clk 0:01:35.5]} 24... h5 {[%clk 0:00:17]}
25. Be4 {[%clk 0:01:32.6]} 25... Bf7 {[%clk 0:00:15.9]} 26. Rd1 {[%clk
0:01:28.8]} 26... Bf8 {[%clk 0:00:11]} 27. f4 {[%clk 0:01:24.8]} 27... exf4
{[%clk 0:00:10.4]} 28. gxf4 {[%clk 0:01:25.7]} 28... Bh6 {[%clk 0:00:10.4]} 29.
e3 {[%clk 0:01:23.3]} 29... f5 {[%clk 0:00:09.1]} 30. Bf3 {[%clk 0:01:20.2]}
30... Be6 {[%clk 0:00:09.5]} 31. Kf2 {[%clk 0:01:19.2]} 31... Kf7 {[%clk
0:00:09.9]} 32. a4 {[%clk 0:01:13.7]} 32... Bf8 {[%clk 0:00:09.7]} 33. a5 {[%clk
0:01:13.3]} 33... Be7 {[%clk 0:00:09.8]} 34. a6 {[%clk 0:01:12.9]} 34... bxa6
{[%clk 0:00:09.3]} 35. Bxc6 {[%clk 0:01:12]} 35... Nc5 {[%clk 0:00:09]} 36. b4
{[%clk 0:01:08.8]} 36... Bxh4+ {[%clk 0:00:05.5]} 37. Kf3 {[%clk 0:01:06.7]}
37... Ne4 {[%clk 0:00:04.8]} 38. Bxe4 {[%clk 0:01:03.5]} 38... fxe4+ {[%clk
0:00:05.7]} 39. Kxe4 {[%clk 0:01:04.1]} 39... Bxc4 {[%clk 0:00:02.3]} 40. Rd7+
{[%clk 0:01:04]} 40... Ke6 {[%clk 0:00:02.4]} 41. Rxa7 {[%clk 0:01:03.8]} 41...
Bf6 {[%clk 0:00:01.8]} 42. Bxf6 {[%clk 0:01:02]} 42... Kxf6 {[%clk 0:00:02.7]}
43. Rc7 {[%clk 0:01:02.3]} 43... Bb5 {[%clk 0:00:02.8]} 44. Rc8 {[%clk
0:00:53.3]} 44... Kg7 {[%clk 0:00:02.3]} 45. Rb8 {[%clk 0:00:52.1]} 45... h4
{[%clk 0:00:02.2]} 46. Kf3 {[%clk 0:00:51.9]} 1-0

[Event "*** SCC Grand Prix: Titled Tuesday Blitz"]
[Site "Chess.com"]
[Date "2020.08.25"]
[Round "5"]
[White "Vesper2018"]
[Black "nrvisakh"]
[Result "0-1"]
[WhiteElo "2571"]
[BlackElo "2812"]
[TimeControl "180+1"]
[EndTime "10:57:24 PDT"]
[Termination "nrvisakh won on time"]

1. e4 {[%clk 0:03:00.9]} 1... e6 {[%clk 0:02:54.6]} 2. d4 {[%clk 0:03:00.3]}
2... d5 {[%clk 0:02:54]} 3. e5 {[%clk 0:02:56.5]} 3... c5 {[%clk 0:02:53.7]} 4.
c3 {[%clk 0:02:56.8]} 4... Nc6 {[%clk 0:02:52.3]} 5. Nf3 {[%clk 0:02:56.3]} 5...
Qb6 {[%clk 0:02:48.3]} 6. Be2 {[%clk 0:02:55.2]} 6... f6 {[%clk 0:02:37]} 7. O-O
{[%clk 0:02:48.2]} 7... Bd7 {[%clk 0:02:23.3]} 8. Re1 {[%clk 0:02:33.6]} 8...
Nge7 {[%clk 0:02:10.7]} 9. dxc5 {[%clk 0:02:21.2]} 9... Qxc5 {[%clk 0:02:09.7]}
10. exf6 {[%clk 0:02:17.3]} 10... gxf6 {[%clk 0:02:08.8]} 11. Nd4 {[%clk
0:02:16.5]} 11... O-O-O {[%clk 0:01:56.2]} 12. b4 {[%clk 0:02:12.1]} 12... Qd6
{[%clk 0:01:45.1]} 13. a4 {[%clk 0:01:46.4]} 13... e5 {[%clk 0:01:26.5]} 14. Nb3
{[%clk 0:01:44.1]} 14... Kb8 {[%clk 0:01:20.9]} 15. Na3 {[%clk 0:01:40.1]} 15...
Ng6 {[%clk 0:01:04.8]} 16. b5 {[%clk 0:01:26.8]} 16... Nce7 {[%clk 0:01:04.1]}
17. Nc2 {[%clk 0:01:26.8]} 17... Qc7 {[%clk 0:00:57]} 18. a5 {[%clk 0:01:15.4]}
18... Qxc3 {[%clk 0:00:52.5]} 19. Rb1 {[%clk 0:00:59.4]} 19... Bf5 {[%clk
0:00:47.9]} 20. Rb2 {[%clk 0:00:48.1]} 20... d4 {[%clk 0:00:43.8]} 21. Nca1
{[%clk 0:00:30.7]} 21... Nd5 {[%clk 0:00:38]} 22. Rd2 {[%clk 0:00:27.3]} 22...
Qb4 {[%clk 0:00:33.4]} 23. Nxd4 {[%clk 0:00:22.1]} 23... exd4 {[%clk 0:00:21.8]}
24. Rxd4 {[%clk 0:00:21.7]} 24... Qc3 {[%clk 0:00:18.8]} 25. Bf3 {[%clk
0:00:17.5]} 25... Bb4 {[%clk 0:00:18.2]} 26. Re3 {[%clk 0:00:06.7]} 26... Qxa1
{[%clk 0:00:15.1]} 27. Bxd5 {[%clk 0:00:05.1]} 27... Bc5 {[%clk 0:00:15.2]} 28.
Rc4 {[%clk 0:00:01.7]} 28... Bxe3 {[%clk 0:00:14.5]} 29. fxe3 {[%clk 0:00:02.2]}
29... Ne5 {[%clk 0:00:14.5]} 30. e4 {[%clk 0:00:02.4]} 30... Nxc4 {[%clk
0:00:14.1]} 31. Bf4+ {[%clk 0:00:02.3]} 31... Qe5 {[%clk 0:00:14.1]} 32. Bxe5+
{[%clk 0:00:02]} 32... fxe5 {[%clk 0:00:15]} 33. exf5 {[%clk 0:00:02.3]} 33...
Ne3 {[%clk 0:00:15.6]} 0-1

[Event "*** SCC Grand Prix: Titled Tuesday Blitz"]
[Site "Chess.com"]
[Date "2020.08.25"]
[Round "5"]
[White "Mr_Sinigami"]
[Black "Saxar85"]
[Result "0-1"]
[WhiteElo "2539"]
[BlackElo "2771"]
[TimeControl "180+1"]
[EndTime "10:57:24 PDT"]
[Termination "Saxar85 won on time"]

1. d4 {[%clk 0:02:10]} 1... d6 {[%clk 0:02:58.3]} 2. Nf3 {[%clk 0:02:05.9]} 2...
g6 {[%clk 0:02:57.6]} 3. Bf4 {[%clk 0:02:03.9]} 3... Bg7 {[%clk 0:02:56.5]} 4.
e3 {[%clk 0:02:04.1]} 4... Nf6 {[%clk 0:02:54.5]} 5. h3 {[%clk 0:02:04]} 5...
O-O {[%clk 0:02:52.3]} 6. Be2 {[%clk 0:02:03.8]} 6... b6 {[%clk 0:02:52]} 7. O-O
{[%clk 0:02:02.7]} 7... Bb7 {[%clk 0:02:51.7]} 8. a4 {[%clk 0:02:01.6]} 8... a6
{[%clk 0:02:50.9]} 9. c3 {[%clk 0:01:55.1]} 9... Nbd7 {[%clk 0:02:49.6]} 10. Bh2
{[%clk 0:01:53.3]} 10... c5 {[%clk 0:02:48.3]} 11. Na3 {[%clk 0:01:50.3]} 11...
Qc7 {[%clk 0:02:46.8]} 12. Nd2 {[%clk 0:01:48.5]} 12... Rfe8 {[%clk 0:02:41]}
13. Re1 {[%clk 0:01:44.7]} 13... Bc6 {[%clk 0:02:36]} 14. Bf3 {[%clk 0:01:43.1]}
14... Bxf3 {[%clk 0:02:24.7]} 15. Qxf3 {[%clk 0:01:39.6]} 15... Rac8 {[%clk
0:02:22.3]} 16. Nc2 {[%clk 0:01:23.5]} 16... e5 {[%clk 0:02:13.2]} 17. dxe5
{[%clk 0:01:19.7]} 17... Nxe5 {[%clk 0:02:07.7]} 18. Qe2 {[%clk 0:01:06.8]}
18... Qb7 {[%clk 0:02:07.3]} 19. Bxe5 {[%clk 0:00:46.6]} 19... Rxe5 {[%clk
0:01:51.9]} 20. Nc4 {[%clk 0:00:46.4]} 20... Re6 {[%clk 0:01:51]} 21. a5 {[%clk
0:00:45.9]} 21... b5 {[%clk 0:01:48.1]} 22. Nb6 {[%clk 0:00:45.5]} 22... Rce8
{[%clk 0:01:47.2]} 23. Rad1 {[%clk 0:00:43.3]} 23... Nd7 {[%clk 0:01:33.8]} 24.
Nd5 {[%clk 0:00:33.4]} 24... Ne5 {[%clk 0:01:31.5]} 25. b3 {[%clk 0:00:22.4]}
25... Nc6 {[%clk 0:01:21.1]} 26. b4 {[%clk 0:00:19.6]} 26... Ne5 {[%clk
0:01:20.8]} 27. f4 {[%clk 0:00:14.9]} 27... Nc4 {[%clk 0:01:19.7]} 28. Qf3
{[%clk 0:00:15.1]} 28... Re4 {[%clk 0:01:04.3]} 29. f5 {[%clk 0:00:09.3]} 29...
gxf5 {[%clk 0:00:58.6]} 30. Qxf5 {[%clk 0:00:09]} 30... Qc8 {[%clk 0:00:55.5]}
31. Qf3 {[%clk 0:00:05.3]} 31... R8e5 {[%clk 0:00:42.1]} 32. Rf1 {[%clk
0:00:04]} 32... Qe6 {[%clk 0:00:40.2]} 33. Nf4 {[%clk 0:00:03.8]} 33... Qf5
{[%clk 0:00:33.9]} 34. Qg3 {[%clk 0:00:02.2]} 34... Qg5 {[%clk 0:00:30.8]} 35.
Qf2 {[%clk 0:00:01.5]} 35... f5 {[%clk 0:00:19.3]} 0-1